Cogmind - Beta 10.2 @@@ ROGUE MODE // 2021.06.06 @ 22:47:13 Player: UlyssesB Result: Destroyed by as-74164 with Assembled Rifle Performance ------------- Evolutions (0) 0 Regions Visited (4) 800 Robots Destroyed (17) 85 Value Destroyed (439) 439 Prototype IDs (23) 460 Alien Tech Used (0) 0 Bonus (300) 300 TOTAL SCORE: 2084 Bonus ------- Aligned with FarCom 300 Cogmind --------- Core Integrity 0/250 Matter 300/300 Energy 100/100 System Corruption 2% Temperature Cool (20) Movement Core (50) Location -9/Mines Parts ------- > --- POWER (1) -------- (None) > --- PROPULSION (2) --- (None) > --- UTILITY (2) ------ (None) > --- WEAPON (2) ------- (None) > --- INVENTORY (4) ---- Improved Heat Sink Medium Armor Plating Particle Gun Guided Plasma Cannon Peak State ------------ > --- POWER ------------ Light Nuclear Core > --- PROPULSION ------- Light Treads Light Treads > --- UTILITY ---------- Medium Storage Unit Medium Armor Plating > --- WEAPON ----------- Assault Rifle Assault Rifle > --- INVENTORY -------- Improved Ion Engine Light Treads Compact Wheel Heat Sink Improved Heat Sink Medium Armor Plating Particle Gun Guided Plasma Cannon [Rating: 12] Favorites ----------- Power Light Nuclear Core Engine Ion Engine Power Core Light Nuclear Core Propulsion Light Treads Treads Light Treads Leg Aluminum Leg Wheel Compact Wheel Utility Medium Storage Unit Device Heat Sink Storage Medium Storage Unit Protection Medium Armor Plating Weapon Assault Rifle Energy Gun Medium Laser Ballistic Gun Assault Rifle Build | -11 -10 -10 -10 -9 ------- Run | Scr Mat Min Exi Min Slots Evolved . | . . . . . Power . | . . . . . Propulsion . | . . . . . Utility . | . . . . . Weapon . | . . . . . Parts Attached 14 | . 12 . . 2 Power 2 | . 2 . . . Engine 1 | . 1 . . . Core 1 | . 1 . . . Reactor . | . . . . . Propulsion 6 | . 4 . . 2 Treads 3 | . 2 . . 1 Leg . | . . . . . Wheel 3 | . 2 . . 1 Hover . | . . . . . Flight . | . . . . . Utility 3 | . 3 . . . Device 1 | . 1 . . . Storage 1 | . 1 . . . Processor . | . . . . . Hackware . | . . . . . Protection 1 | . 1 . . . Artifact . | . . . . . Weapon 3 | . 3 . . . Energy Gun 1 | . 1 . . . Energy Cannon . | . . . . . Ballistic Gun 2 | . 2 . . . Ballistic Cannon . | . . . . . Launcher . | . . . . . Special Weapon . | . . . . . Impact Weapon . | . . . . . Slashing Weapon . | . . . . . Piercing Weapon . | . . . . . Special Melee Weapon . | . . . . . Unidentified Prototypes . | . . . . . Parts Lost 4 | . 1 . . 3 Power . | . . . . . Propulsion 1 | . . . . 1 Utility . | . . . . . Weapon 3 | . 1 . . 2 Highest Loss Streak 3 | . 1 . . 3 Average Slot Usage (%) 96 | . 98 100 100 81 Engine 2 | . 6 . . . Core 11 | . 7 14 14 11 Treads 23 | . 19 28 28 23 Wheel 2 | . 6 . . . Device 2 | . 5 . . . Storage 13 | . 14 14 14 11 Protection 11 | . 7 14 14 11 Energy Gun 4 | . 10 . . . Ballistic Gun 22 | . 17 28 28 22 Naked Turns 44 | . . . . 44 Heaviest Build 26 | 13 26 24 24 24 Greatest Support 40 | 20 40 40 40 40 Greatest Overweight (x) 1 | . . . . 1 Average Overweight (x) . | . . . . . Largest Inventory Capacity 8 | . 8 8 8 8 Average Capacity 7 | . 7 8 8 7 Most Carried 8 | . 8 8 8 8 Average Carried 7 | . 6 7 7 7 Final Capacity 8 | 6 8 8 8 4 Final Carried 8 | 6 7 8 8 4 Class Distribution -------------------- 100% | Mutant Dominant Class ---------------- Mutant | -10/Materials Mutant | -10/Mines Mutant | -10/Exiles Mutant | -9/Mines Resources | -11 -10 -10 -10 -9 ----------- Run | Scr Mat Min Exi Min Matter Collected 554 | 200 167 74 . 113 Remotely . | . . . . . Salvage Created 709 | . 488 101 . 120 Parts 39 | . 30 6 . 3 Haulers Intercepted 1 | . 1 . . . Recyclers Shooed 3 | . 3 . . . Parts Field Recycled . | . . . . . Retrieved Matter . | . . . . . Parts Self-Destructed . | . . . . . Prevented . | . . . . . Kills | -11 -10 -10 -10 -9 ------- Run | Scr Mat Min Exi Min Combat Hostiles Destroyed 15 | . 9 2 . 4 Guns 15 | . 9 2 . 4 Classes Destroyed 6 | . 5 . . 1 Hauler 1 | . 1 . . . Recycler 2 | . 2 . . . Watcher 1 | . 1 . . . Swarmer 3 | . 3 . . . Grunt 10 | . 6 2 . 2 Assembled 2 | . . . . 2 Best Kill Streak 2 | . 2 2 . 2 Combat Bots Only 2 | . 2 2 . 2 Max Kills in Single Turn 1 | . 1 1 . 1 Gunslinging . | . . . . . Exploded . | . . . . . Melee . | . . . . . Uniques/NPCs Destroyed . | . . . . . Combat | -11 -10 -10 -10 -9 -------- Run | Scr Mat Min Exi Min Damage Taken 1032 | . 328 113 . 591 Core 259 | . 42 . . 217 Absorbed by Shields . | . . . . . Core Remaining (%) 100 | 100 . . . . Volleys Fired 58 | . 34 6 . 18 Largest 2 | . 2 2 . 2 Hottest 100 | . 100 40 . 40 Shots Fired 115 | . 67 12 . 36 Gun 115 | . 67 12 . 36 Cannon . | . . . . . Launcher . | . . . . . Special . | . . . . . Kinetic 78 | . 30 12 . 36 Thermal 37 | . 37 . . . Explosive . | . . . . . Electromagnetic . | . . . . . Robot Hit Streak 21 | . 21 6 . 10 Robot Miss Streak 4 | . 4 1 . 2 Penetration Max . | . . . . . Secondary Targets 1 | . . . . 1 Max Gunslinging Chain 1 | . . . . 1 Shots Hit Robots 81 | . 44 8 . 29 Core Hits 36 | . 21 4 . 11 Critical Hits . | . . . . . Critical Kills . | . . . . . Critical Parts Destroyed . | . . . . . Melee Attacks . | . . . . . Impact . | . . . . . Slashing . | . . . . . Piercing . | . . . . . Sneak Attacks . | . . . . . Combat Hostiles . | . . . . . Follow-up Attacks . | . . . . . Damage Inflicted 1026 | . 523 112 . 391 Guns 1006 | . 511 112 . 383 Cannons . | . . . . . Explosions . | . . . . . Melee . | . . . . . Ramming 20 | . 12 . . 8 Kinetic 666 | . 171 112 . 383 Thermal 340 | . 340 . . . Explosive . | . . . . . Electromagnetic . | . . . . . Impact . | . . . . . Slashing . | . . . . . Piercing . | . . . . . Highest Corruption 2 | . . . . 2 Average Corruption 2 | . . . . 2 Corruption Purged . | . . . . . Effects 1 | . . . . 1 Message Errors 1 | . . . . 1 Overload Shots . | . . . . . Overflow Damage . | . . . . . Projectiles . | . . . . . Explosions . | . . . . . Melee . | . . . . . Knockbacks . | . . . . . Impact . | . . . . . Kinetic . | . . . . . Secondary . | . . . . . Self-Inflicted Damage 5 | . 1 . . 4 Shots . | . . . . . Rammed 5 | . 4 . . 1 Targets Rammed 6 | . 5 . . 1 Kicked . | . . . . . Crushed 1 | . 1 . . . Highest Temperature 88 | . 88 29 . 64 Average Temperature 30 | . 26 18 . 39 Received Heat Transfer 443 | . 117 66 . 260 Siege Activations . | . . . . . Robots Corrupted . | . . . . . Combat Hostiles . | . . . . . Parts Fried . | . . . . . Impact Corruptions . | . . . . . Robots Melted 1 | . 1 . . . Combat Hostiles . | . . . . . Parts Melted 5 | . 5 . . . Heat Transferred 999 | . 999 . . . Parts Sabotaged . | . . . . . Parts Stolen . | . . . . . Parts Stripped . | . . . . . Power Chain Reactions . | . . . . . Missiles Intercepted . | . . . . . Alert | -11 -10 -10 -10 -9 ------- Run | Scr Mat Min Exi Min Peak Influence 217 | . 217 68 . 65 Initial . | . . . . . Average 73 | . 87 61 . 43 Maximum Alert Level 1 | . 1 . . . Low Security (%) 98 | . 97 100 . 100 Level 1 1 | . 2 . . . Level 2 . | . . . . . Level 3 . | . . . . . Level 4 . | . . . . . Level 5 . | . . . . . High Security . | . . . . . Max Security . | . . . . . Squads Dispatched 4 | . 4 . . . Investigation 2 | . 2 . . . Extermination . | . . . . . Reinforcement 2 | . 2 . . . Assault . | . . . . . Garrison . | . . . . . Intercept . | . . . . . Construction Impeded . | . . . . . Haulers Reinforced . | . . . . . Stealth | -11 -10 -10 -10 -9 --------- Run | Scr Mat Min Exi Min Distress Signals 4 | . 3 . . 1 Communications Jammed . | . . . . . Distress Signals . | . . . . . Times Spotted 43 | . 19 2 . 22 Peak Tracking Total 11 | . 4 2 . 11 Tactical Retreats 4 | . 1 . . 3 Traps | -11 -10 -10 -10 -9 ------- Run | Scr Mat Min Exi Min Traps Triggered 1 | . 1 . . . Indirectly . | . . . . . Trap Hack Attempts . | . . . . . Triggered . | . . . . . Disarmed . | . . . . . Reprogrammed . | . . . . . Reused . | . . . . . Traps Extracted . | . . . . . Installed . | . . . . . Triggered . | . . . . . Exploded 1 | . . . 1 . Machines | -11 -10 -10 -10 -9 ---------- Run | Scr Mat Min Exi Min Machines Disabled . | . . . . . Max in Single Turn . | . . . . . Machines Sabotaged . | . . . . . Garrisons Compromised . | . . . . . Overloaded Fab Kills . | . . . . . Fab Network Shutdowns . | . . . . . Hacking | -11 -10 -10 -10 -9 --------- Run | Scr Mat Min Exi Min Machines Accessed 6 | . 3 1 2 . Terminals 4 | . 3 1 . . Fabricators . | . . . . . Repair Stations . | . . . . . Recycling Units . | . . . . . Scanalyzers . | . . . . . Garrison Access . | . . . . . Total Hacks 38 | . 9 5 24 . Successful 30 | . 3 3 24 . Failed 8 | . 6 2 . . Catastrophic 4 | . 3 1 . . Database Lockouts . | . . . . . Manual 5 | . . 4 1 . Terminals 14 | . 9 5 . . Fabricators . | . . . . . Repair Stations . | . . . . . Recycling Units . | . . . . . Scanalyzers . | . . . . . Garrison Access . | . . . . . Terminal Hacks 29 | . 3 2 24 . Record 23 | . . . 23 . Robot Analysis 2 | . 1 1 . . Branch Access Points 1 | . 1 . . . Locate Traps 1 | . 1 . . . Zone Layout 1 | . . 1 . . EX-Prototype ID Bank 1 | . . . 1 . Fabricator Hacks . | . . . . . Repair Station Hacks . | . . . . . Recycling Unit Hacks . | . . . . . Scanalyzer . | . . . . . Garrison Access Hacks . | . . . . . Unauthorized Hacks 1 | . . 1 . . Terminals 1 | . . 1 . . Track 1 | . . 1 . . Fabricators . | . . . . . Repair Stations . | . . . . . Recycling Units . | . . . . . Scanalyzers . | . . . . . Garrison Access . | . . . . . Data Cores Recovered . | . . . . . Used . | . . . . . Hacking Detections 3 | . 2 1 . . Full Trace Events 1 | . 1 . . . Feedback Events . | . . . . . Feedback Blocked . | . . . . . Robot Schematics Acquired . | . . . . . Robots Built . | . . . . . Matter . | . . . . . Time . | . . . . . Total Robot Build Rating . | . . . . . Part Schematics Acquired . | . . . . . Parts Built . | . . . . . Matter . | . . . . . Time . | . . . . . Total Part Build Rating . | . . . . . Parts Repaired . | . . . . . Time . | . . . . . Parts Recycled . | . . . . . Recycled Matter . | . . . . . Retrieved Matter . | . . . . . Retrieved Components . | . . . . . Parts Scanalyzed . | . . . . . Part Schematics Acquired . | . . . . . Parts Damaged . | . . . . . Bothacking | -11 -10 -10 -10 -9 ------------ Run | Scr Mat Min Exi Min Used RIF Installer . | . . . . . Robots Hacked . | . . . . . Non-combat . | . . . . . Combat . | . . . . . Robot Hacks Applied . | . . . . . Relay Couplers Released . | . . . . . Robots Rewired . | . . . . . Allies Hacked . | . . . . . Hacks Repelled . | . . . . . Allies | -11 -10 -10 -10 -9 -------- Run | Scr Mat Min Exi Min Total Allies 1 | . . 1 . . Largest Group 1 | . . 1 1 . Highest-Rated Group 31 | . . 31 31 . Highest-Rated Ally 31 | . . 31 31 . Total Orders . | . . . . . Ally Attacks . | . . . . . Total Damage . | . . . . . Kills . | . . . . . Allies Corrupted . | . . . . . Allies Melted . | . . . . . Intel | -11 -10 -10 -10 -9 ------- Run | Scr Mat Min Exi Min Robot Analysis Total 2 | . 1 1 . . Derelict Logs Recovered 1 | . . . . 1 Drone Launches . | . . . . . Drone Recoveries . | . . . . . Exploration | -11 -10 -10 -10 -9 ------------- Run | Scr Mat Min Exi Min Turns Passed 1982 | . 807 252 634 289 Spaces Moved 982 | 1 388 143 246 204 Core 85 | . . . . 85 Treads 773 | . 272 143 246 112 Legs 36 | 1 35 . . . Wheels 88 | . 81 . . 7 Hover . | . . . . . Flight . | . . . . . Fastest Speed 50 | 120 100 160 160 50 Average Speed 143 | 120 143 160 160 112 Slowest Speed 160 | 120 160 160 160 160 Overloaded Moves . | . . . . . Propulsion Burnouts . | . . . . . Robots Hopped . | . . . . . Cave-ins Triggered . | . . . . . Exploration Rate (%) 42 | 2 73 43 59 36 Regions Visited 4 Branch Regions 3 Pre-discovered Areas 2 | . . . 1 1 Known Exits Taken 1 | . 1 . . . Unknown Exits Taken 3 | 1 . 1 1 . Scrap Searched . | . . . . . Spaces Dug . | . . . . . Terrain Destroyed . | . . . . . Melee . | . . . . . Projectile . | . . . . . AOE . | . . . . . Terrain Rammed . | . . . . . Walls Destroyed . | . . . . . Machines Disabled . | . . . . . Actions | -11 -10 -10 -10 -9 --------- Run | Scr Mat Min Exi Min Total 1438 | . 569 155 487 227 Wait 351 | . 107 4 240 . Move 978 | . 387 142 245 204 Hop . | . . . . . Pick Up 16 | . 12 2 1 1 Fast Attach 2 | . 2 . . . Attach 3 | . 2 . . 1 Detach . | . . . . . Swap 9 | . 8 . . 1 Drop 15 | . 12 1 1 1 Fire 58 | . 34 6 . 18 Melee . | . . . . . Ram 1 | . . . . 1 Kick 1 | . 1 . . . Crush 4 | . 4 . . . Escape Stasis . | . . . . . Rewire . | . . . . . Trap . | . . . . . Miscellaneous . | . . . . . Route ------- -11/Scrapyard -10/Materials (discovered 3 exits: [*Mat x2] / *Min) -10/Mines -10/Exiles -9/Mines History --------- Turn | Location | Event 1 | -11/Scrapyard | Discovered new exit (range 0) 1 | -11/Scrapyard | Entered Materials 316 | -10/Materials | Build established: Mutant 400 | -10/Materials | Discovered new exit (range 16) 552 | -10/Materials | Discovered new exit (range 16) 553 | -10/Materials | Identified exit to Mines 808 | -10/Materials | Entered Mines 873 | -10/Mines | Received a Mining Laser from a helpful Derelict 1051 | -10/Mines | Deemed a non-threat by the Exiles lab entrance 1051 | -10/Mines | Discovered new exit (range 5) 1060 | -10/Mines | Entered Exiles 1060 | -10/Exiles | Accompanied by 1 ally 1102 | -10/Exiles | Met 8R-AWN 1129 | -10/Exiles | Met EX-HEX 1176 | -10/Exiles | Met EX-BIN 1204 | -10/Exiles | Aligned with FarCom system 1206 | -10/Exiles | Given EX-Vault access code 1243 | -10/Exiles | Opened EX-Vault 1258 | -10/Exiles | Found Gui. Plasma Cannon 1296 | -10/Exiles | Warned to stay clear of 0b10 Research branches 1309 | -10/Exiles | Exiles lab attacked by MAIN.C 1345 | -10/Exiles | Learned location of Zion (-7) 1395 | -10/Exiles | Discovered new exit (range 12) 1694 | -10/Exiles | Left Exiles lab with Gui. Plasma Cannon 1694 | -10/Exiles | Entered Mines 1837 | -9/Mines | Learned location of Storage (-7) 1890 | -9/Mines | Assembled infested the area 1895 | -9/Mines | Assisted by a Guerilla fighting off Assembled 1939 | -9/Mines | Released all parts (5) 1940 | -9/Mines | Core integrity fell below 50% 1953 | -9/Mines | Lost 3 parts (1n2w) 1980 | -9/Mines | Core integrity fell below 20% 1983 | -9/Mines | Destroyed by as-74164 with Assembled Rifle Last Messages --------------- 01914_ HV Slug penetrates as-02329. 01914_ as-02329 suffers critical hit. 01914_ as-02329 destroyed. 01914_ DK-RAY destroyed. 01916_ HV Slug penetrates Wall. 01916_ Q1-PB7(h) destroyed. 01920_ Lgt. Treads destroyed. 01920_ Assault Rifle destroyed. 01920_ System corrupted by crushing effect (+2). 01922_ Assault Rifle destroyed. 01939_ Released Com. Wheel. 01939_ Released Lgt. Treads. 01939_ Released Med. Armor Plating. 01939_ Released Med. Storage Unit. 01939_ Released Lgt. Nuclear Core. 01943_ 8LEHRTOVADR&&XQK#WFOTWINM&STAUAP9> 01944_ K-01 Serf collects debris. 01963_ Acquired 71 matter. 01966_ Slammed into as-74164. 01980_ as-63024 shuts down. Map ----- +----------------------------------------------------+ | ????????????? ????????????????????? | | ????????????? ???????????????????? | | ????????????? % ????????????????????? | | ?????????????# = ?????????????????????? | | ?????????????# ?????????????????????? | | ????????????? ??????????????????????? | | ?????????????? #??????????????????????? | | ???????####??? ##?????????????????????? | | ??????## ##??# ##????????????????????? | | ?????## #### ##???????????????????? | | ????## ## #???????????????????? | | ???## #???????????????????? | | ???# ## ##???????????????????? | | ??## #### ##????????????????????? | | ?## #??## #????????????####?????? | | ## ##?## ##??????????## ##????? | | # ### #?????????## ##???? | | # % #?????????# #???? | | !=* ##?????????# #???? | | !=! =% % ##??????????##< #????? | | *= """" =%%##???????????## ##????? | | """" % #?????????#### ##?????? | | ### """" #; *####????## a a #??????? | | ##?# #### % ###### aa #??????? | | ##??# ##??##! % aa #??????? | | #???# ##????#; ! @ a####??????? | | #???## ##?????### #### #######?????????? | | ##???# ##????????# #?# ###?????????????? | | ##### #?????????#%##?# ??????????????? | | #?????????# ####!##??????????????? | | #???#####?# !=%=#???????????????? | | #######??## ########!#???????????????? | | ##?####??## #?????# #???????????????? | | #?## #### ####### #???????????????? | | ?## ## #???????????????? | | ?# #########???????????????? | | ## ##??????????????????????? | | % #??????????????????????? | | #??????????????????????? | | #### ## #??????????????????????? | | ???## ###### ##??????????????????????? | | ????#####????####???????????????????????? | | ????????????????????????????????????????? | | ????????????????????????????????????????? | | | | | | | | | | | | | +----------------------------------------------------+ Best States ------------- Heat Dissipation 35 Energy Generation 14 Energy Capacity 265 Matter Stores 300 Matter Capacity 300 Sight Range 16 Terrain Scan Density 10 Armor Coverage 225 Evasion (%) 50 Recoil Reduction 2 Item Schematics ----------------- None Robot Schematics ------------------ None Fabricated ------------ Nothing Alien Tech Used ----------------- None Achievements -------------- None Challenges ------------ None Game ------ Seed SupersonicLegCutter Manual? 0 Play Time 00:24:27 Cumulative 169.4 hours Start 2021.06.05 @ 19:13:34 End 2021.06.06 @ 22:47:13 Sessions 3 Manual Loads 0 Difficulty Rogue Special Mode None Game No. 110 Rogue 110 Adventurer 0 Explorer 0 Win Type - Total 6 Types 4/0/1/1/0/0/0/0/0 Lore% 70 Gallery% 66 Achievement% 51 Wizard Run 0 Options --------- ASCII 1 Keyboard 0 Movement Mouse Keybinds 0 Fullscreen 2 Font 18/SmallcapsGlow Map View 76x50 Tactical HUD 1 Map Filters NONE Filters NONE Steam 0 RUN: dc3e6f27-9c93-42a7-b4e7-c29fd55065f8